fUST/lending_fUST_20250211
["ID","MTS","AMOUNT","RATE_DAILY","PERIOD"]
[352635005,1739211046634,-1011.48,0.00013424,2]
[352635006,1739211046644,-605.73,0.00013424,2]
[352635007,1739211046654,-500.0,0.00013424,2]
[352635008,1739211046664,-618.3,0.00013424,2]
[352635009,1739211046675,-500.0,0.00013424,2]
[352635010,1739211046684,-1576.48,0.00013424,2]
[352635011,1739211046694,-562.0,0.00013424,2]
[352635012,1739211046704,-4799.04,0.00013424,2]
[352635013,1739211046714,-500.0,0.00013424,2]
[352635014,1739211046725,-500.0,0.00013424,2]
[352635015,1739211046735,-1047.28,0.00013424,2]
[352635016,1739211046746,-906.35,0.00013424,2]
[352635017,1739211046756,-959.64,0.00013424,2]
[352635018,1739211046766,-541.13,0.00013424,2]
[352635019,1739211046775,-2435.0,0.00013424,2]
[352635020,1739211046786,-500.0,0.00013424,2]
[352635021,1739211046796,-1037.56,0.00013424,2]
[352635022,1739211046806,-828.36,0.00013424,2]
[352635023,1739211046816,-10377.76,0.00013424,2]
[352635024,1739211046827,-500.0,0.00013424,2]
[352635025,1739211046837,-151.0,0.000135,2]
[352635026,1739211046847,-3223.11,0.0001356,2]
[352635027,1739211046857,-151.0,0.0001356,2]
[352635028,1739211046867,-151.0,0.0001356,2]
[352635029,1739211046877,-500.0,0.00013561,2]
[352635030,1739211046887,-500.0,0.00013561,2]
[352635031,1739211046897,-500.0,0.00013561,2]
[352635032,1739211046906,-394.422786,0.00013561,2]
[352635033,1739211046915,-394.422786,0.00013561,2]
[352635034,1739211046924,-1011.48,0.00013561,2]
[352635035,1739211046934,-151.0,0.00013561,2]
[352635036,1739211046943,-605.73,0.00013561,2]
[352635037,1739211046953,-500.0,0.00013561,2]
[352635038,1739211046963,-618.3,0.00013561,2]
[352635039,1739211046972,-500.0,0.00013561,2]
[352635040,1739211046981,-1576.48,0.00013561,2]
[352635041,1739211046991,-562.0,0.00013561,2]
[352635042,1739211047001,-4799.04,0.00013561,2]
[352635043,1739211047010,-500.0,0.00013561,2]
[352635044,1739211047020,-500.0,0.00013561,2]
[352635045,1739211047033,-1047.28,0.00013561,2]
[352635046,1739211047044,-906.35,0.00013561,2]
[352635047,1739211047054,-959.64,0.00013561,2]
[352635048,1739211047064,-541.13,0.00013561,2]
[352635049,1739211047074,-2435.0,0.00013561,2]
[352635050,1739211047085,-594.98,0.00013561,2]
[352635051,1739211047094,-1037.56,0.00013561,2]
[352635052,1739211047104,-828.36,0.00013561,2]
[352635053,1739211047113,-10377.76,0.00013561,2]
[352635054,1739211047123,-500.0,0.00013561,2]
[352635055,1739211047132,-151.0,0.000136,2]
[352635056,1739211047141,-396.0,0.00013623,2]
[352635057,1739211047151,-151.0,0.00013697,2]
[352635058,1739211047160,-151.0,0.00013697,2]
[352635059,1739211047170,-3223.11,0.00013697,2]
[352635060,1739211047180,-151.0,0.00013697,2]
[352635061,1739211047189,-151.0,0.00013697,2]
[352635062,1739211047199,-211.726036,0.00013697,2]
[352635063,1739211047208,-211.726036,0.00013697,2]
[352635064,1739211047219,-151.0,0.00013697,2]
[352635065,1739211047229,-288.948148,0.00013698,2]
[352635066,1739211047238,-288.948148,0.00013698,2]
[352635067,1739211047248,-500.0,0.00013698,2]
[352635068,1739211047258,-500.0,0.00013698,2]
[352635069,1739211047268,-500.0,0.00013698,2]
[352635070,1739211047277,-1011.48,0.00013698,2]
[352635071,1739211047287,-605.73,0.00013698,2]
[352635072,1739211047297,-161.52,0.00013698,2]
[352635073,1739211047307,-618.3,0.00013698,2]
[352635074,1739211047317,-500.0,0.00013698,2]
[352635075,1739211047327,-1576.48,0.00013698,2]
[352635076,1739211047337,-562.0,0.00013698,2]
[352635077,1739211047347,-4799.04,0.00013698,2]
[352635078,1739211047357,-500.0,0.00013698,2]
[352635079,1739211047367,-500.0,0.00013698,2]
[352635080,1739211047376,-1047.28,0.00013698,2]
[352635081,1739211047386,-906.35,0.00013698,2]
[352635082,1739211047396,-959.64,0.00013698,2]
[352635083,1739211047405,-541.13,0.00013698,2]
[352635084,1739211047414,-2435.0,0.00013698,2]
[352635085,1739211047424,-1037.56,0.00013698,2]
[352635086,1739211047433,-828.36,0.00013698,2]
[352635087,1739211047443,-10377.76,0.00013698,2]
[352635088,1739211047452,-562.93245433,0.00013698,2]
[352635089,1739211047463,-288.085591,0.00013699,2]
[352635090,1739211047473,-151.0,0.000137,2]
[352635091,1739211047484,-151.0,0.000138,2]
[352635092,1739211047494,-3223.11,0.00013834,2]
[352635093,1739211047504,-500.0,0.00013835,2]
[352635094,1739211047514,-500.0,0.00013835,2]
[352635095,1739211047524,-356.380436,0.00013835,2]
[352635096,1739211047534,-356.380436,0.00013835,2]
[352635097,1739211047544,-500.0,0.00013835,2]
[352635098,1739211047554,-1011.48,0.00013835,2]
[352635099,1739211047564,-605.73,0.00013835,2]
[352635100,1739211047576,-618.3,0.00013835,2]
[352635101,1739211047586,-530.55,0.00013835,2]
[352635102,1739211047596,-1576.48,0.00013835,2]
[352635103,1739211047606,-562.0,0.00013835,2]
[352635104,1739211047617,-4799.04,0.00013835,2]
[352635105,1739211047628,-500.0,0.00013835,2]
[352635106,1739211047644,-500.0,0.00013835,2]
[352635107,1739211047655,-1047.28,0.00013835,2]
[352635108,1739211047666,-906.35,0.00013835,2]
[352635109,1739211047677,-959.64,0.00013835,2]
[352635110,1739211047687,-541.13,0.00013835,2]
[352635111,1739211047699,-2435.0,0.00013835,2]
[352635112,1739211047709,-1037.56,0.00013835,2]
[352635113,1739211047719,-828.36,0.00013835,2]
[352635114,1739211047730,-10377.76,0.00013835,2]
[352635115,1739211047740,-150.0,0.00013895,2]
[352635116,1739211047750,-1969.0,0.00013895,2]
[352635117,1739211047760,-538.973,0.00013895,2]
[352635118,1739211047770,-2294.0,0.00013895,2]
[352635119,1739211047779,-3223.11,0.00013971,2]
[352635120,1739211047789,-500.0,0.00013972,2]
[352635121,1739211047799,-410.7,0.00013972,2]
[352635122,1739211047808,-151.0,0.00013972,2]
[352635123,1739211047819,-151.0,0.00013972,2]
[352635124,1739211047829,-151.0,0.00013972,2]
[352635125,1739211047839,-362.02,0.00013972,2]
[352635126,1739211047849,-1011.48,0.00013972,2]
[352635127,1739211047859,-605.73,0.00013972,2]
[352635128,1739211047892,-618.3,0.00013972,2]
[352635129,1739211047902,-1576.48,0.00013972,2]
[352635130,1739211047912,-562.0,0.00013972,2]
[352635131,1739211047922,-4799.04,0.00013972,2]
[352635132,1739211047932,-470.46377349,0.00013972,2]
[352635133,1739211047942,-500.0,0.00013972,2]
[352635134,1739211047952,-1047.28,0.00013972,2]
[352635135,1739211047962,-176.57946952,0.00013972,2]
[352635136,1739211047972,-906.35,0.00013972,2]
[352635137,1739211047984,-959.64,0.00013972,2]
[352635138,1739211047994,-541.13,0.00013972,2]
[352635139,1739211048004,-2435.0,0.00013972,2]
[352635140,1739211048015,-1037.56,0.00013972,2]
[352635141,1739211048025,-828.36,0.00013972,2]
[352635142,1739211048037,-10377.76,0.00013972,2]
[352635143,1739211048049,-151.0,0.00014,2]
[352635144,1739211048060,-237.377,0.00014,2]
[352635145,1739211048070,-156.87499977,0.00014,2]
[352635146,1739211048082,-532.0,0.00014,4]
[352635147,1739211048094,-151.0,0.000141,2]
[352635148,1739211048103,-3223.11,0.00014108,2]
[352635149,1739211048113,-376.4,0.00014109,2]
[352635150,1739211048123,-1011.56827327,0.00014109,2]
[352635151,1739211048133,-605.76788108,0.00014109,2]
[352635152,1739211048143,-618.39,0.00014109,2]
[352635153,1739211048154,-1576.66,0.00014109,2]
[352635154,1739211048164,-562.17,0.00014109,2]
[352635155,1739211048174,-4799.09,0.00014109,2]
[352635156,1739211048185,-248.91,0.00014109,2]
[352635157,1739211048195,-1047.42,0.00014109,2]
[352635158,1739211048206,-906.48,0.00014109,2]
[352635159,1739211048217,-959.65,0.00014109,2]
[352635160,1739211048227,-541.21,0.00014109,2]
[352635161,1739211048238,-2435.09726669,0.00014109,2]
[352635162,1739211048248,-1037.71,0.00014109,2]
[352635163,1739211048257,-828.42,0.00014109,2]
[352635164,1739211048267,-10377.8394751,0.00014109,2]
[352635165,1739211048278,-151.0,0.000142,2]
[352635166,1739211048288,-3223.12,0.00014245,2]
[352635167,1739211048298,-1564.41,0.000145,2]
[352635168,1739211048309,-151.0,0.000146,2]
[352635169,1739211048319,-288.948148,0.00015,2]
[352635170,1739211048331,-288.948148,0.00015,2]
[352635171,1739211048343,-288.948148,0.00015,2]
[352635172,1739211048356,-288.948148,0.00015,2]
[352635173,1739211048367,-288.948148,0.00015,2]
[352635174,1739211048378,-288.948148,0.00015,2]
[352635175,1739211048390,-151.0,0.00015,2]
[352635176,1739211048401,-151.0,0.00015,2]
[352635177,1739211048412,-166.0,0.00015068,2]
[352635178,1739211048423,-153.885,0.000152,2]
[352635179,1739211048434,-168.0,0.00015224,2]
[352635180,1739211048445,-169.94,0.00015224,2]
[352635181,1739211048457,-166.0,0.00015224,2]
[352635182,1739211048468,-166.0,0.00015224,2]
[352635183,1739211048479,-166.0,0.00015224,2]
[352635184,1739211048490,-166.26,0.00015224,2]
[352635185,1739211048500,-151.0,0.000155,2]
[352635186,1739211048511,-151.0,0.000155,2]
[352635187,1739211048521,-532.0,0.000155,5]
[352635188,1739211048532,-176.57946952,0.00015529,2]
[352635189,1739211048542,-288.948148,0.00015592,2]
[352635190,1739211048554,-288.948148,0.00015592,2]
[352635191,1739211048564,-13267.29691025,0.00015681,2]
[352635192,1739211048575,-150.2,0.00015822,2]
[352635193,1739211048587,-150.2,0.00015822,2]
[352635194,1739211048598,-500.0,0.00015822,2]
[352635195,1739211048609,-500.0,0.00015822,2]
[352635196,1739211048619,-150.2,0.00015822,2]
[352635197,1739211048631,-150.2,0.00015822,2]
[352635198,1739211048645,-151.0,0.00015839,2]
[352635199,1739211048655,-151.0,0.00015839,2]
[352635200,1739211048667,-151.0,0.00015839,2]
[352635201,1739211048678,-151.0,0.00015839,2]
[352635202,1739211048688,-151.0,0.00015839,2]
[352635203,1739211048700,-217.353897,0.00015839,2]
[352635204,1739211048716,-217.353897,0.00015839,2]
[352635205,1739211048730,-170.4501297,0.0001584,2]
[352635206,1739211048742,-522.3561,0.00015858,2]
[352635207,1739211048757,-392.41609695,0.000159,2]
[352635208,1739211048768,-1186.96507974,0.00015999,2]
[352635209,1739211048780,-521273.52916973,0.00016,2]
[352635210,1739211048797,-35124.14920354,0.00016,2]
[352635211,1739211048962,-500.0,0.00011232,2]
[352635212,1739211048974,-500.0,0.00011369,2]
[352635213,1739211048983,-500.0,0.00011506,2]
[352635214,1739211048993,-500.0,0.00011506,2]
[352635215,1739211049003,-500.0,0.00011643,2]
[352635216,1739211049013,-206.09999999,0.00011643,2]
[352635217,1739211049026,-293.90000001,0.00011643,2]
[352635218,1739211049036,-500.0,0.0001178,2]
[352635219,1739211049046,-500.0,0.0001178,2]
[352635220,1739211049056,-500.0,0.00011917,2]
[352635221,1739211049067,-500.0,0.00011917,2]
[352635222,1739211049077,-500.0,0.00012054,2]
[352635223,1739211049087,-500.0,0.00012191,2]
[352635224,1739211049097,-1408.17240969,0.00016,2]
[352635225,1739211049109,-96151.88973041,0.00016,2]
[352635226,1739211049119,-200.0,0.00016,3]
[352635227,1739211049129,-571.174229,0.00016,2]
[352635228,1739211049139,-288.948148,0.00016,2]
[352635229,1739211049148,-288.948148,0.00016,2]
[352635230,1739211049158,-151.0,0.00016,2]
[352635231,1739211049168,-151.0,0.00016,2]
[352635232,1739211049178,-151.0,0.00016,2]
[352635233,1739211049191,-151.0,0.00016,2]
[352635234,1739211049201,-151.0,0.00016,2]
[352635235,1739211049210,-164.87973,0.00016,2]
[352635236,1739211049219,-164.87973,0.00016,2]
[352635237,1739211049229,-151.0,0.00016,2]
[352635238,1739211049239,-151.0,0.00016,2]
[352635239,1739211049249,-151.0,0.00016,2]
[352635240,1739211049259,-151.0,0.00016,2]
[352635241,1739211049269,-356.380436,0.00016,2]
[352635242,1739211049279,-356.380436,0.00016,2]
[352635243,1739211049288,-151.0,0.00016,2]
[352635244,1739211049298,-151.0,0.00016,2]
[352635245,1739211049307,-151.0,0.00016,2]
[352635246,1739211049317,-151.0,0.00016,2]
[352635247,1739211049327,-394.422786,0.00016,2]
[352635248,1739211049337,-394.422786,0.00016,2]
[352635249,1739211049346,-151.0,0.00016,2]
[352635250,1739211049356,-151.0,0.00016,2]
[352635251,1739211049365,-151.0,0.00016,2]
[352635252,1739211049375,-151.0,0.00016,2]
[352635253,1739211049384,-259.85772,0.00016,2]
[352635254,1739211049394,-151.0,0.00016,2]
[352635255,1739211049403,-151.0,0.00016,2]
[352635256,1739211049413,-211.726036,0.00016,2]
[352635257,1739211049422,-211.726036,0.00016,2]
[352635258,1739211049432,-151.0,0.00016,2]
[352635259,1739211049442,-217.353897,0.00016,2]
[352635260,1739211049451,-217.353897,0.00016,2]
[352635261,1739211049461,-392.41609687,0.00016031,2]
[352635262,1739211049471,-660.48151942,0.00016092,2]
[352635263,1739211049481,-300.13,0.00016096,2]
[352635264,1739211049491,-199.52,0.00016096,2]
[352635265,1739211049501,-500.0,0.00016096,2]
[352635266,1739211049511,-500.0,0.00016096,2]
[352635267,1739211049521,-150.2,0.00016096,2]
[352635268,1739211049531,-500.0,0.00016125,2]
[352635269,1739211049542,-480.9977727,0.00016125,2]
[352635270,1739211049552,-392.41609687,0.00016163,2]
[352635271,1739211049562,-659.33,0.00016164,2]
[352635272,1739211049572,-708.7722235,0.00016164,2]
[352635273,1739211049584,-709.6852112,0.00016164,2]
[352635274,1739211049593,-354.8426056,0.00016192,2]
[352635275,1739211049603,-354.8426056,0.00016192,2]
[352635276,1739211049613,-354.8426056,0.00016192,2]
[352635277,1739211049623,-354.8426056,0.00016192,2]
[352635278,1739211049634,-354.8426056,0.00016192,2]
[352635279,1739211049644,-660.48151942,0.00016192,2]
[352635280,1739211049653,-160.0,0.00016261,4]
[352635281,1739211049663,-660.48151942,0.00016292,2]
[352635282,1739211049674,-392.41609687,0.00016294,2]
[352635283,1739211049684,-153.0,0.00016329,2]
[352635284,1739211049694,-153.0,0.00016329,2]
[352635285,1739211049704,-153.0,0.00016329,2]
[352635286,1739211049716,-215.7975175,0.00016356,2]
[352635287,1739211049726,-500.0,0.0001637,2]
[352635288,1739211049736,-500.0,0.0001637,2]
[352635289,1739211049746,-200.37472956,0.0001637,2]
[352635290,1739211049755,-660.48151942,0.00016392,2]
[352635291,1739211049765,-392.41609687,0.00016426,2]
[352635292,1739211049775,-500.0,0.00016438,2]
[352635293,1739211049784,-1000.0,0.00016438,7]
[352635294,1739211049794,-1000.0,0.00016438,7]
[352635295,1739211049804,-1000.0,0.00016438,7]
[352635296,1739211049814,-1000.0,0.00016438,7]
[352635297,1739211049823,-686.99283786,0.00016438,7]
[352635298,1739211049835,-500.0,0.00016438,2]
[352635299,1739211049845,-500.0,0.00016438,2]
[352635300,1739211049855,-5292.0,0.0001644,7]
[352635301,1739211049865,-160.0,0.00016459,120]
[352635302,1739211049875,-660.48151942,0.00016492,2]
[352635303,1739211049884,-315.0,0.000165,2]
[352635304,1739211049894,-7438.69753278,0.000165,7]
[352635305,1739211049903,-160.0,0.00016534,120]
[352635306,1739211049913,-392.41609687,0.00016557,2]
[352635307,1739211049922,-153.0,0.00016575,2]
[352635308,1739211049932,-153.0,0.00016575,2]
[352635309,1739211049942,-153.0,0.00016575,2]
[352635310,1739211049952,-235.0594965,0.00016575,2]
[352635311,1739211049962,-660.48151942,0.00016592,2]
[352635312,1739211049972,-396.0,0.00016623,2]
[352635313,1739211049982,-500.0,0.00016644,2]
[352635314,1739211049991,-500.0,0.00016644,2]
[352635315,1739211050001,-392.41609687,0.00016689,2]
[352635316,1739211050011,-660.48151942,0.00016692,2]
[352635317,1739211050021,-660.48151942,0.00016792,2]
[352635318,1739211050031,-392.41609687,0.0001682,2]
[352635319,1739211050041,-660.48151942,0.00016892,2]
[352635320,1739211050050,-500.0,0.00016918,2]
[352635321,1739211050059,-500.0,0.00016918,2]
[352635322,1739211050069,-392.41609687,0.00016952,2]
[352635323,1739211050079,-500.0,0.00016986,3]
[352635324,1739211050089,-3095.66000528,0.0001699,2]
[352635325,1739211050098,-660.48151942,0.00016992,2]
[352635326,1739211050108,-500.0,0.00017,120]
[352635327,1739211050117,-500.0,0.00017,120]
[352635328,1739211050127,-500.0,0.00017,30]
[352635329,1739211050138,-500.0,0.00017,30]
[352635330,1739211050147,-1000.0,0.00017,30]
[352635331,1739211050156,-500.0,0.00017,30]
[352635332,1739211050166,-161.13,0.00017,31]
[352635333,1739211050175,-161.13,0.00017,31]
[352635334,1739211050185,-161.13,0.00017,31]
[352635335,1739211050194,-161.13,0.00017,31]
[352635336,1739211050204,-161.13,0.00017,31]
[352635337,1739211050213,-161.13,0.00017,31]
[352635338,1739211050223,-161.13,0.00017,31]
[352635339,1739211050232,-532.0,0.00017,6]
[352635340,1739211050242,-169.812053,0.00017,20]
[352635341,1739211050251,-22606.44280509,0.00017003,2]
[352635342,1739211050262,-3000.0,0.00017065,2]
[352635343,1739211050272,-392.41609687,0.00017083,2]
[352635344,1739211050282,-176.57946952,0.00017086,2]
[352635345,1739211050291,-660.48151942,0.00017092,2]
[352635346,1739211050301,-2000.0,0.000171,2]
[352635347,1739211050311,-2000.0,0.000171,2]
[352635348,1739211050321,-288.085591,0.00017123,2]
[352635349,1739211050331,-288.948148,0.00017127,2]
[352635350,1739211050341,-288.948148,0.00017127,2]
[352635351,1739211050351,-288.948148,0.00017132,2]
[352635352,1739211050360,-288.948148,0.00017132,2]
[352635353,1739211050370,-288.948148,0.00017132,2]
[352635354,1739211050380,-288.948148,0.00017132,2]
[352635355,1739211050390,-288.948148,0.00017132,2]
[352635356,1739211050399,-288.948142,0.00017132,2]
[352635357,1739211050409,-151.0,0.00017164,2]
[352635358,1739211050418,-151.0,0.00017164,2]
[352635359,1739211050428,-151.0,0.00017164,2]
[352635360,1739211050437,-151.0,0.00017164,2]
[352635361,1739211050447,-151.0,0.00017164,2]
[352635362,1739211050458,-151.0,0.00017164,2]
[352635363,1739211050467,-151.0,0.00017164,2]
[352635364,1739211050478,-151.0,0.00017164,2]
[352635365,1739211050575,-151.0,0.00017164,2]
[352635366,1739211050586,-151.0,0.00017164,2]
[352635367,1739211050595,-151.0,0.00017164,2]
[352635368,1739211050605,-151.0,0.00017164,2]
[352635369,1739211050615,-151.0,0.00017164,2]
[352635370,1739211050624,-169.55290123,0.00017164,2]
[352635371,1739211050635,-177.159698,0.00017164,2]
[352635372,1739211050644,-151.0,0.00017164,2]
[352635373,1739211050654,-151.0,0.00017164,2]
[352635374,1739211050663,-151.0,0.00017164,2]
[352635375,1739211050674,-151.0,0.00017164,2]
[352635376,1739211050683,-151.0,0.00017164,2]
[352635377,1739211050693,-151.0,0.00017164,2]
[352635378,1739211050703,-158.436506,0.00017164,2]
[352635379,1739211050713,-151.0,0.00017164,2]
[352635380,1739211050724,-151.0,0.00017164,2]
[352635381,1739211050733,-151.0,0.00017164,2]
[352635382,1739211050743,-151.0,0.00017164,2]
[352635383,1739211050753,-151.0,0.00017164,2]
[352635384,1739211050762,-151.0,0.00017164,2]
[352635385,1739211050772,-151.0,0.00017164,2]
[352635386,1739211050782,-151.0,0.00017164,2]
[352635387,1739211050792,-151.0,0.00017164,2]
[352635388,1739211050802,-151.0,0.00017164,2]
[352635389,1739211050811,-205.51358,0.00017164,2]
[352635390,1739211050821,-151.0,0.00017164,2]
[352635391,1739211050831,-151.0,0.00017164,2]
[352635392,1739211050841,-151.0,0.00017164,2]
[352635393,1739211050850,-151.0,0.00017164,2]
[352635394,1739211050859,-151.0,0.00017164,2]
[352635395,1739211050868,-151.0,0.00017164,2]
[352635396,1739211050878,-151.0,0.00017164,2]
[352635397,1739211050887,-151.0,0.00017164,2]
[352635398,1739211050897,-151.0,0.00017164,2]
[352635399,1739211050907,-151.0,0.00017164,2]
[352635400,1739211050916,-151.0,0.00017164,2]
[352635401,1739211050926,-151.0,0.00017164,2]
[352635402,1739211050935,-151.0,0.00017164,2]
[352635403,1739211050944,-151.0,0.00017164,2]
[352635404,1739211050953,-249.928124,0.00017164,2]
[352635405,1739211050963,-1000.0,0.00017164,7]
[352635406,1739211050973,-1000.0,0.00017164,7]
[352635407,1739211050982,-1000.0,0.00017164,7]
[352635408,1739211050992,-1000.0,0.00017164,7]
[352635409,1739211051001,-1000.0,0.00017164,7]
[352635410,1739211051011,-1000.0,0.00017164,7]
[352635411,1739211051020,-1000.0,0.00017164,7]
[352635412,1739211051030,-1000.0,0.00017164,7]
[352635413,1739211051039,-1000.0,0.00017164,7]
[352635414,1739211051049,-1000.0,0.00017164,7]
[352635415,1739211051059,-1000.0,0.00017164,7]
[352635416,1739211051069,-1000.0,0.00017164,7]
[352635417,1739211051079,-1000.0,0.00017164,7]
[352635418,1739211051088,-1000.0,0.00017164,7]
[352635419,1739211051098,-1000.0,0.00017164,7]
[352635420,1739211051108,-1000.0,0.00017164,7]
[352635421,1739211051118,-1000.0,0.00017164,7]
[352635422,1739211051128,-1000.0,0.00017164,7]
[352635423,1739211051138,-1000.0,0.00017164,7]
[352635424,1739211051148,-1000.0,0.00017164,7]
[352635425,1739211051159,-1000.0,0.00017164,7]
[352635426,1739211051170,-1000.0,0.00017164,7]
[352635427,1739211051180,-1000.0,0.00017164,7]
[352635428,1739211051190,-1000.0,0.00017164,7]
[352635429,1739211051200,-1000.0,0.00017164,7]
[352635430,1739211051210,-1000.0,0.00017164,7]
[352635431,1739211051220,-1000.0,0.00017164,7]
[352635432,1739211051230,-1000.0,0.00017164,7]
[352635433,1739211051239,-1000.0,0.00017164,7]
[352635434,1739211051249,-1000.0,0.00017164,7]
[352635435,1739211051259,-146.38080646,0.00017164,7]
[352635436,1739211051335,-853.61919354,0.00017164,7]
[352635437,1739211051345,-1000.0,0.00017164,7]
[352635438,1739211051356,-1000.0,0.00017164,7]
[352635439,1739211051367,-1000.0,0.00017164,7]
[352635440,1739211051378,-1000.0,0.00017164,7]
[352635441,1739211051388,-1000.0,0.00017164,7]
[352635442,1739211051399,-1000.0,0.00017164,7]
[352635443,1739211051409,-1000.0,0.00017164,7]
[352635444,1739211051419,-1000.0,0.00017164,7]
[352635445,1739211051429,-1000.0,0.00017164,7]
[352635446,1739211051440,-1000.0,0.00017164,7]
[352635447,1739211051450,-500.0,0.0001717,2]
[352635448,1739211051461,-151.0,0.0001717,2]
[352635449,1739211051472,-151.0,0.0001717,2]
[352635450,1739211051483,-151.0,0.0001717,2]
[352635451,1739211051493,-151.0,0.0001717,2]
[352635452,1739211051502,-151.0,0.0001717,2]
[352635453,1739211051512,-151.0,0.0001717,2]
[352635454,1739211051521,-151.0,0.0001717,2]
[352635455,1739211051531,-151.0,0.0001717,2]
[352635456,1739211051540,-291.635356,0.0001717,2]
[352635457,1739211051551,-151.0,0.0001717,2]
[352635458,1739211051560,-151.0,0.0001717,2]
[352635459,1739211051570,-151.0,0.0001717,2]
[352635460,1739211051582,-151.0,0.0001717,2]
[352635461,1739211051591,-151.0,0.0001717,2]
[352635462,1739211051601,-151.0,0.0001717,2]
[352635463,1739211051611,-167.675431,0.0001717,2]
[352635464,1739211051621,-151.0,0.0001717,2]
[352635465,1739211051636,-151.0,0.0001717,2]
[352635466,1739211051647,-151.0,0.0001717,2]
[352635467,1739211051657,-151.0,0.0001717,2]
[352635468,1739211051668,-151.0,0.0001717,2]
[352635469,1739211051679,-151.0,0.0001717,2]
[352635470,1739211051690,-270.086608,0.0001717,2]
[352635471,1739211051700,-500.0,0.00017173,2]
[352635472,1739211051710,-500.0,0.00017173,2]
[352635473,1739211051721,-500.0,0.00017173,2]
[352635474,1739211051731,-151.0,0.00017182,2]
[352635475,1739211051742,-151.0,0.00017182,2]
[352635476,1739211051752,-151.0,0.00017182,2]
[352635477,1739211051762,-151.0,0.00017182,2]
[352635478,1739211051772,-151.0,0.00017182,2]
[352635479,1739211051782,-151.0,0.00017182,2]
[352635480,1739211051792,-151.0,0.00017182,2]
[352635481,1739211051802,-151.0,0.00017182,2]
[352635482,1739211051812,-151.0,0.00017182,2]
[352635483,1739211051823,-151.0,0.00017182,2]
[352635484,1739211051837,-151.0,0.00017182,2]
[352635485,1739211051847,-151.0,0.00017182,2]
[352635486,1739211051857,-151.0,0.00017182,2]
[352635487,1739211051869,-151.0,0.00017182,2]
[352635488,1739211051881,-151.0,0.00017182,2]
[352635489,1739211051895,-264.468143,0.00017182,2]
[352635490,1739211051906,-151.0,0.00017182,2]
[352635491,1739211051916,-151.0,0.00017182,2]
[352635492,1739211051926,-151.0,0.00017182,2]
[352635493,1739211051936,-151.0,0.00017182,2]
[352635494,1739211051946,-151.0,0.00017182,2]
[352635495,1739211051956,-151.0,0.00017182,2]
[352635496,1739211051966,-151.0,0.00017182,2]
[352635497,1739211051976,-151.0,0.00017182,2]
[352635498,1739211051986,-208.608216,0.00017182,2]
[352635499,1739211051995,-164.87973,0.00017182,2]
[352635500,1739211052006,-164.87973,0.00017182,2]
[352635501,1739211052016,-164.87973,0.00017182,2]
[352635502,1739211052025,-164.87973,0.00017182,2]
[352635503,1739211052036,-164.87973,0.00017182,2]
[352635504,1739211052046,-164.87973,0.00017182,2]